[Event "DVM U10 2024"]
[Site "Duesseldorf"]
[Date "2024.12.28"]
[Round "6"]
[White "Gheng, Hannes Lucas"]
[Black "Balla, Virinchi"]
[Result "0-1"]
[ECO "B21"]
[WhiteElo "1482"]
[BlackElo "1123"]
[Annotator "NA RC"]
[PlyCount "84"]
[EventDate "2024.12.23"]
[EventType "team-tourn"]
[EventRounds "7"]
[EventCountry "GER"]
[SourceTitle "playchess.com"]
[Source "ChessBase"]
[SourceQuality "1"]
[TimeControl "3300+5"]

1. e4 {[%emt 0:00:04]} c5 {[%emt 0:00:02]} 2. d4 {[%emt 0:00:14]} cxd4 {[%emt 0:00:09]} 3. c3 {[%emt 0:00:05]} dxc3 {[%emt 0:00:15]} 4. Nxc3 {[%emt 0:00:19]} Nc6 {[%emt 0:00:17]} 5. Bc4 {[%emt 0:00:05]} e6 {[%emt 0:00:33]} 6. Nf3 {[%emt 0:00:11]} Nf6 {[%emt 0:00:13]} 7. e5 {[%emt 0:00:23]} Ng4 {[%emt 0:00:24]} 8. Bf4 {[%emt 0:00:34]} Qc7 {[%emt 0:01:33]} 9. O-O {[%emt 0:00:40]} Ngxe5 {[%emt 0:00:44]} 10. Nb5 {[%emt 0:00:42]} Qb8 {[%emt 0:01:38]} 11. Re1 {[%emt 0:01:07]} d6 {[%emt 0:00:17]} 12. Nxe5 {[%emt 0:01:03]} Nxe5 {[%emt 0:00:37]} 13. Bxe5 {[%emt 0:01:55]} dxe5 {[%emt 0:01:08]} 14. Qd3 {[%emt 0:02:45]} Be7 {[%emt 0:00:38]} 15. Qg3 {[%emt 0:01:02]} O-O {[%emt 0:01:23]} 16. Qh3 {[%emt 0:03:28]} a6 {[%emt 0:00:56]} 17. Nc3 {[%emt 0:03:36]} b5 {[%emt 0:01:00]} 18. Bd3 {[%emt 0:00:11]} g6 {[%emt 0:01:11]} 19. Re3 {[%emt 0:01:12]} f5 {[%emt 0:04:22]} 20. Qh6 {[%emt 0:03:13]} Rf7 {[%emt 0:00:40]} 21. Rae1 {[%emt 0:05:00]} Bf8 {[%emt 0:01:57]} 22. Qh4 {[%emt 0:00:46]} Bg7 {[%emt 0:00:26]} 23. Rh3 {[%emt 0:00:20]} Bf8 {[%emt 0:02:00]} 24. Ree3 {[%emt 0:01:42]} Rg7 {[%emt 0:04:17]} 25. Reg3 {[%emt 0:02:16]} Raa7 {[%emt 0:02:36]} 26. Bc2 {[%emt 0:04:27]} Qc7 {[%emt 0:06:58]} 27. Qh6 {[%emt 0:03:19]} b4 {[%emt 0:00:00]} 28. Bxf5 {[%emt 0:07:49]} exf5 {[%emt 0:00:00]} 29. Nd5 {[%emt 0:00:05]} Qd6 {[%emt 0:00:26]} 30. Rd3 {[%emt 0:01:44]} e4 {[%emt 0:09:40]} 31. Rd1 {[%emt 0:01:00]} Qe5 {[%emt 0:02:36]} 32. Nb6 {[%emt 0:01:32]} Be6 {[%emt 0:04:23]} 33. Re1 {[%emt 0:00:59]} Rgb7 {[%emt 0:00:46]} 34. Qh4 {[%emt 0:00:49]} Rxb6 {[%emt 0:00:25]} 35. f4 {[%emt 0:00:47]} Qxb2 {[%emt 0:00:33]} 36. Kh1 {[%emt 0:02:03]} Qg7 {[%emt 0:01:02]} 37. Qf2 {[%emt 0:00:20]} Rab7 {[%emt 0:00:15]} 38. Rb1 {[%emt 0:00:01]} b3 {[%emt 0:00:31]} 39. a3 {[%emt 0:00:10]} Bxa3 {[%emt 0:00:07]} 40. Rd1 {[%emt 0:00:16]} Be7 {[%emt 0:00:35]} 41. Qe3 {[%emt 0:00:08]} b2 {[%emt 0:00:04]} 42. Rb1 {[%emt 0:00:01]} Ba2 {[%emt 0:00:08]} 0-1

[Event "DVM U10 2024"]
[Site "Duesseldorf"]
[Date "2024.12.28"]
[Round "6"]
[White "Huang, Flora Yueya"]
[Black "Busch, Jonathan Luis"]
[Result "1-0"]
[ECO "A52"]
[WhiteElo "1481"]
[BlackElo "1655"]
[Annotator "NA RC"]
[PlyCount "131"]
[EventDate "2024.12.23"]
[EventType "team-tourn"]
[EventRounds "7"]
[EventCountry "GER"]
[SourceTitle "playchess.com"]
[Source "ChessBase"]
[SourceQuality "1"]
[TimeControl "3300+5"]

1. d4 {[%emt 0:00:03]} Nf6 {[%emt 0:00:06]} 2. c4 {[%emt 0:00:04]} e5 {[%emt 0:00:07]} 3. dxe5 {[%emt 0:00:04]} Ng4 {[%emt 0:00:06]} 4. Nf3 {[%emt 0:00:05]} Bc5 {[%emt 0:00:12]} 5. e3 {[%emt 0:00:19]} Nc6 {[%emt 0:00:08]} 6. Nc3 {[%emt 0:00:27]} Ngxe5 {[%emt 0:00:15]} 7. Nxe5 {[%emt 0:00:59]} Nxe5 {[%emt 0:00:08]} 8. a3 {[%emt 0:01:56]} a5 {[%emt 0:00:48]} 9. Ne4 {[%emt 0:00:03]} Be7 {[%emt 0:00:52]} 10. Be2 {[%emt 0:01:31]} O-O {[%emt 0:00:36]} 11. O-O {[%emt 0:00:38]} d6 {[%emt 0:00:45]} 12. b3 {[%emt 0:01:00]} Be6 {[%emt 0:00:32]} 13. Bb2 {[%emt 0:00:07]} f5 {[%emt 0:00:57]} 14. Nc3 {[%emt 0:00:28]} f4 {[%emt 0:02:03]} 15. exf4 {[%emt 0:00:20]} Rxf4 {[%emt 0:00:22]} 16. Nd5 {[%emt 0:00:12]} Rf5 {[%emt 0:05:17]} 17. Bxe5 {[%emt 0:01:37]} Rxe5 {[%emt 0:04:34]} 18. f4 {[%emt 0:00:08]} Rf5 {[%emt 0:04:42]} 19. Bg4 {[%emt 0:00:06]} Qd7 {[%emt 0:00:40]} 20. Bxf5 {[%emt 0:01:29]} Bxf5 {[%emt 0:00:07]} 21. Nxe7+ {[%emt 0:00:22]} Qxe7 {[%emt 0:00:07]} 22. Qd5+ {[%emt 0:00:06]} Qe6 {[%emt 0:01:04]} 23. Qxe6+ {[%emt 0:00:08]} Bxe6 {[%emt 0:00:16]} 24. f5 {[%emt 0:00:43]} Bf7 {[%emt 0:00:11]} 25. Rfe1 {[%emt 0:00:22]} Kf8 {[%emt 0:00:12]} 26. g4 {[%emt 0:00:14]} a4 {[%emt 0:00:20]} 27. b4 {[%emt 0:00:14]} Bxc4 {[%emt 0:00:08]} 28. Rac1 {[%emt 0:00:04]} b5 {[%emt 0:00:32]} 29. Kf2 {[%emt 0:00:29]} Kf7 {[%emt 0:00:26]} 30. Re3 {[%emt 0:00:15]} Ra7 {[%emt 0:01:16]} 31. g5 {[%emt 0:04:00]} c6 {[%emt 0:02:28]} 32. Kg3 {[%emt 0:02:25]} Rd7 {[%emt 0:01:01]} 33. Kf4 {[%emt 0:00:50]} Bd5 {[%emt 0:01:23]} 34. h4 {[%emt 0:01:33]} Bc4 {[%emt 0:01:43]} 35. Rd1 {[%emt 0:00:43]} Bb3 {[%emt 0:01:57]} 36. Rd2 {[%emt 0:00:05]} Bc4 {[%emt 0:00:16]} 37. h5 {[%emt 0:00:24]} Bb3 {[%emt 0:05:23]} 38. g6+ {[%emt 0:02:41]} hxg6 {[%emt 0:00:19]} 39. fxg6+ {[%emt 0:00:05]} Kf8 {[%emt 0:02:13]} 40. Kg5 {[%emt 0:00:22]} Rd8 {[%emt 0:01:44]} 41. h6 {[%emt 0:01:10]} gxh6+ {[%emt 0:00:38]} 42. Kxh6 {[%emt 0:00:04]} Kg8 {[%emt 0:00:33]} 43. Rde2 {[%emt 0:00:10]} Kf8 {[%emt 0:01:18]} 44. g7+ {[%emt 0:00:39]} Kf7 {[%emt 0:01:07]} 45. Re7+ {[%emt 0:00:31]} Kf6 {[%emt 0:00:20]} 46. Kh7 {[%emt 0:00:33]} Bg8+ {[%emt 0:02:28]} 47. Kh6 {[%emt 0:00:10]} Bf7 {[%emt 0:00:25]} 48. R7e3 {[%emt 0:01:19]} Bg6 {[%emt 0:03:37]} 49. Re6+ {[%emt 0:00:10]} Kf5 {[%emt 0:00:11]} 50. Rxg6 {[%emt 0:00:06]} c5 {[%emt 0:00:03]} 51. bxc5 {[%emt 0:00:19]} dxc5 {[%emt 0:00:02]} 52. Rg5+ {[%emt 0:00:05]} Kf6 {[%emt 0:00:07]} 53. g8=Q {[%emt 0:00:37]} Rxg8 {[%emt 0:00:07]} 54. Rxg8 {[%emt 0:00:04]} b4 {[%emt 0:00:01]} 55. axb4 {[%emt 0:00:07]} cxb4 {[%emt 0:00:01]} 56. Rg4 {[%emt 0:00:15]} Kf5 {[%emt 0:00:07]} 57. Rxb4 {[%emt 0:00:00]} a3 {[%emt 0:00:01]} 58. Ra2 {[%emt 0:00:09]} Ke5 {[%emt 0:00:06]} 59. Rxa3 {[%emt 0:00:03]} Kd6 {[%emt 0:00:02]} 60. Ra5 {[%emt 0:01:16]} Kc6 {[%emt 0:00:04]} 61. Rg5 {[%emt 0:01:04]} Kc7 {[%emt 0:00:11]} 62. Rf4 {[%emt 0:00:09]} Kd6 {[%emt 0:00:05]} 63. Rf6+ {[%emt 0:00:03]} Ke7 {[%emt 0:00:02]} 64. Ra6 {[%emt 0:00:07]} Kd7 {[%emt 0:00:19]} 65. Rg7+ {[%emt 0:00:03]} Kc8 {[%emt 0:00:01]} 66. Ra8# {[%emt 0:00:07]} 1-0

[Event "DVM U10 2024"]
[Site "Duesseldorf"]
[Date "2024.12.28"]
[Round "6"]
[White "von Gehlen, Elian"]
[Black "Dintinger, Ata Lucien"]
[Result "1-0"]
[ECO "C29"]
[WhiteElo "1464"]
[BlackElo "1511"]
[Annotator "NA RC"]
[PlyCount "50"]
[EventDate "2024.12.23"]
[EventType "team-tourn"]
[EventRounds "7"]
[EventCountry "GER"]
[SourceTitle "playchess.com"]
[Source "ChessBase"]
[SourceQuality "1"]
[TimeControl "3300+5"]

1. e4 {[%emt 0:00:01]} e5 {[%emt 0:00:08]} 2. Nc3 {[%emt 0:00:06]} Nf6 {[%emt 0:00:05]} 3. f4 {[%emt 0:00:05]} d5 {[%emt 0:00:12]} 4. fxe5 {[%emt 0:00:09]} Nxe4 {[%emt 0:00:08]} 5. Qf3 {[%emt 0:00:11]} Bc5 {[%emt 0:00:42]} 6. d3 {[%emt 0:01:36]} Nf2 {[%emt 0:00:16]} 7. Na4 {[%emt 0:00:48]} Bg4 {[%emt 0:01:39]} 8. Qg3 {[%emt 0:00:26]} Qe7 {[%emt 0:03:47]} 9. Nxc5 {[%emt 0:00:14]} Qxc5 {[%emt 0:00:14]} 10. Qxf2 {[%emt 0:00:05]} d4 {[%emt 0:00:48]} 11. Bf4 {[%emt 0:00:44]} g5 {[%emt 0:00:30]} 12. Bg3 {[%emt 0:00:15]} h5 {[%emt 0:00:14]} 13. Qf6 {[%emt 0:00:14]} Rg8 {[%emt 0:00:26]} 14. Rc1 {[%emt 0:00:43]} Rg6 {[%emt 0:00:09]} 15. Qh8+ {[%emt 0:00:11]} Ke7 {[%emt 0:00:42]} 16. h3 {[%emt 0:00:11]} Be6 {[%emt 0:00:40]} 17. h4 {[%emt 0:00:22]} Bxa2 {[%emt 0:02:12]} 18. hxg5 {[%emt 0:00:25]} Qb4+ {[%emt 0:00:05]} 19. Kd1 {[%emt 0:00:05]} Qxb2 {[%emt 0:01:32]} 20. Qc8 {[%emt 0:00:44]} Rc6 {[%emt 0:00:51]} 21. Bh4 {[%emt 0:00:28]} f6 {[%emt 0:01:37]} 22. exf6+ {[%emt 0:00:49]} Kf7 {[%emt 0:00:44]} 23. Be2 {[%emt 0:00:55]} Kg6 {[%emt 0:00:28]} 24. Bxh5+ {[%emt 0:01:10]} Kxh5 {[%emt 0:01:02]} 25. Qf5 {[%emt 0:00:07]} Rxf6 {[%emt 0:04:49]} 1-0

[Event "DVM U10 2024"]
[Site "Duesseldorf"]
[Date "2024.12.28"]
[Round "6"]
[White "von Gehlen, Samuel"]
[Black "Steffen, Leon"]
[Result "1-0"]
[ECO "C50"]
[WhiteElo "1459"]
[BlackElo "1058"]
[Annotator "NA RC"]
[PlyCount "35"]
[EventDate "2024.12.23"]
[EventType "team-tourn"]
[EventRounds "7"]
[EventCountry "GER"]
[SourceTitle "playchess.com"]
[Source "ChessBase"]
[SourceQuality "1"]
[TimeControl "3300+5"]

1. e4 {[%emt 0:00:01]} e5 {[%emt 0:00:06]} 2. Nc3 {[%emt 0:00:05]} Bc5 {[%emt 0:00:17]} 3. Bc4 {[%emt 0:00:21]} Nf6 {[%emt 0:00:22]} 4. Nf3 {[%emt 0:00:31]} Nc6 {[%emt 0:00:10]} 5. d3 {[%emt 0:00:08]} d6 {[%emt 0:00:09]} 6. Bg5 {[%emt 0:00:07]} O-O {[%emt 0:00:34]} 7. Nd5 {[%emt 0:00:07]} a6 {[%emt 0:00:35]} 8. Nxf6+ {[%emt 0:00:13]} gxf6 {[%emt 0:00:09]} 9. Bh6 {[%emt 0:00:04]} Re8 {[%emt 0:00:11]} 10. Nh4 {[%emt 0:00:25]} Nd4 {[%emt 0:00:27]} 11. c3 {[%emt 0:00:19]} Nc6 {[%emt 0:00:18]} 12. Nf5 {[%emt 0:00:16]} Bxf5 {[%emt 0:00:14]} 13. exf5 {[%emt 0:00:05]} Ne7 {[%emt 0:00:48]} 14. Qg4+ {[%emt 0:00:12]} Ng6 {[%emt 0:00:09]} 15. fxg6 {[%emt 0:00:10]} hxg6 {[%emt 0:00:29]} 16. Qxg6+ {[%emt 0:00:05]} Kh8 {[%emt 0:00:24]} 17. Bg7+ {[%emt 0:00:10]} Kg8 {[%emt 0:00:26]} 18. Bxf7# {[%emt 0:00:05]} 1-0

[Event "DVM U10 2024"]
[Site "Duesseldorf"]
[Date "2024.12.28"]
[Round "6"]
[White "Wilting, Oskar"]
[Black "Götz, Georg"]
[Result "1-0"]
[ECO "D00"]
[WhiteElo "1454"]
[BlackElo "1284"]
[Annotator "NA"]
[PlyCount "97"]
[EventDate "2024.12.23"]
[EventType "team-tourn"]
[EventRounds "7"]
[EventCountry "GER"]
[SourceTitle "playchess.com"]
[Source "ChessBase"]
[SourceQuality "1"]
[TimeControl "3300+5"]

1. d4 {[%emt 0:00:04]} d5 {[%emt 0:00:10]} 2. Nc3 {[%emt 0:00:14]} Nf6 {[%emt 0:00:07]} 3. Bf4 {[%emt 0:00:13]} c6 {[%emt 0:00:43]} 4. e3 {[%emt 0:00:28]} Bf5 {[%emt 0:00:12]} 5. f3 {[%emt 0:00:17]} e6 {[%emt 0:00:25]} 6. g4 {[%emt 0:00:21]} Bg6 {[%emt 0:00:18]} 7. h4 {[%emt 0:00:16]} h6 {[%emt 0:01:19]} 8. Bd3 {[%emt 0:00:41]} Bxd3 {[%emt 0:00:29]} 9. Qxd3 {[%emt 0:00:18]} Bd6 {[%emt 0:00:08]} 10. Nge2 {[%emt 0:00:32]} Rh7 {[%emt 0:02:13]} 11. O-O-O {[%emt 0:03:45]} Bxf4 {[%emt 0:00:52]} 12. exf4 {[%emt 0:01:07]} Nbd7 {[%emt 0:00:29]} 13. g5 {[%emt 0:00:44]} hxg5 {[%emt 0:00:56]} 14. fxg5 {[%emt 0:00:17]} b5 {[%emt 0:00:43]} 15. gxf6 {[%emt 0:01:08]} Nxf6 {[%emt 0:00:17]} 16. Rdg1 {[%emt 0:04:55]} a5 {[%emt 0:00:47]} 17. Kd2 {[%emt 0:10:14]} Qd6 {[%emt 0:00:46]} 18. Qe3 {[%emt 0:03:24]} Rd8 {[%emt 0:03:07]} 19. Ng3 {[%emt 0:04:09]} b4 {[%emt 0:00:28]} 20. Na4 {[%emt 0:02:37]} Rb8 {[%emt 0:03:29]} 21. Nf5 {[%emt 0:02:20]} Ne4+ {[%emt 0:02:37]} 22. Qxe4 {[%emt 0:03:05]} Qh2+ {[%emt 0:03:08]} 23. Rxh2 {[%emt 0:00:37]} dxe4 {[%emt 0:00:12]} 24. Nd6+ {[%emt 0:00:15]} Ke7 {[%emt 0:00:28]} 25. Nxe4 {[%emt 0:00:08]} b3 {[%emt 0:00:28]} 26. axb3 {[%emt 0:00:17]} Rb4 {[%emt 0:00:09]} 27. Kc3 {[%emt 0:00:47]} Rb8 {[%emt 0:00:12]} 28. Nac5 {[%emt 0:01:18]} g6 {[%emt 0:00:09]} 29. Rgh1 {[%emt 0:01:05]} f5 {[%emt 0:00:28]} 30. Ng5 {[%emt 0:00:21]} Rhh8 {[%emt 0:00:14]} 31. Ngxe6 {[%emt 0:00:24]} Rhe8 {[%emt 0:00:11]} 32. h5 {[%emt 0:00:48]} gxh5 {[%emt 0:00:10]} 33. Rxh5 {[%emt 0:00:07]} Kd6 {[%emt 0:00:09]} 34. Rxf5 {[%emt 0:00:46]} Rxe6 {[%emt 0:00:13]} 35. Nxe6 {[%emt 0:00:05]} Kxe6 {[%emt 0:00:08]} 36. Re5+ {[%emt 0:00:10]} Kd7 {[%emt 0:00:12]} 37. Kd3 {[%emt 0:00:25]} Re8 {[%emt 0:00:07]} 38. Rxe8 {[%emt 0:00:07]} Kxe8 {[%emt 0:00:09]} 39. Re1+ {[%emt 0:00:21]} Kf7 {[%emt 0:00:10]} 40. Kc4 {[%emt 0:00:07]} Kf6 {[%emt 0:00:11]} 41. Kc5 {[%emt 0:00:06]} a4 {[%emt 0:00:18]} 42. bxa4 {[%emt 0:00:04]} Kf5 {[%emt 0:00:10]} 43. a5 {[%emt 0:00:04]} Kf4 {[%emt 0:00:03]} 44. a6 {[%emt 0:00:05]} Kxf3 {[%emt 0:00:18]} 45. a7 {[%emt 0:00:08]} Kf4 {[%emt 0:00:06]} 46. a8=Q {[%emt 0:00:08]} Kf5 {[%emt 0:00:05]} 47. Qf8+ {[%emt 0:00:08]} Kg4 {[%emt 0:00:10]} 48. Rg1+ {[%emt 0:00:05]} Kh3 {[%emt 0:00:10]} 49. Qh6# {[%emt 0:00:06]} 1-0

[Event "DVM U10 2024"]
[Site "Duesseldorf"]
[Date "2024.12.28"]
[Round "6"]
[White "Trunz, Daniel"]
[Black "Liu, Mio Runhan"]
[Result "0-1"]
[ECO "C44"]
[WhiteElo "1440"]
[BlackElo "1198"]
[Annotator "NA RC"]
[PlyCount "50"]
[EventDate "2024.12.23"]
[EventType "team-tourn"]
[EventRounds "7"]
[EventCountry "GER"]
[SourceTitle "playchess.com"]
[Source "ChessBase"]
[SourceQuality "1"]
[TimeControl "3300+5"]

1. e4 {[%emt 0:00:03]} e5 {[%emt 0:00:09]} 2. Nf3 {[%emt 0:00:07]} Nc6 {[%emt 0:00:07]} 3. d4 {[%emt 0:00:14]} exd4 {[%emt 0:00:09]} 4. Bc4 {[%emt 0:00:34]} Bb4+ {[%emt 0:00:20]} 5. c3 {[%emt 0:01:38]} Bc5 {[%emt 0:01:46]} 6. O-O {[%emt 0:00:25]} Nf6 {[%emt 0:00:15]} 7. e5 {[%emt 0:00:43]} d5 {[%emt 0:00:20]} 8. Bb5 {[%emt 0:00:37]} Ne4 {[%emt 0:01:53]} 9. cxd4 {[%emt 0:00:46]} Bb6 {[%emt 0:01:23]} 10. Qc2 {[%emt 0:01:46]} Bd7 {[%emt 0:00:30]} 11. Nbd2 {[%emt 0:01:55]} Nxd2 {[%emt 0:01:08]} 12. Qxd2 {[%emt 0:01:03]} O-O {[%emt 0:00:00]} 13. Qf4 {[%emt 0:01:19]} f6 {[%emt 0:05:42]} 14. Qg3 {[%emt 0:03:01]} Nxd4 {[%emt 0:03:37]} 15. exf6 {[%emt 0:02:28]} Nf5 {[%emt 0:02:38]} 16. Qg4 {[%emt 0:03:45]} Bxb5 {[%emt 0:01:03]} 17. Nh4 {[%emt 0:01:53]} Qxf6 {[%emt 0:04:37]} 18. Nxf5 {[%emt 0:01:59]} Qxf5 {[%emt 0:00:14]} 19. Qxf5 {[%emt 0:02:40]} Rxf5 {[%emt 0:00:52]} 20. Be3 {[%emt 0:01:19]} Bxf1 {[%emt 0:00:00]} 21. Bxb6 {[%emt 0:00:34]} axb6 {[%emt 0:00:00]} 22. Kxf1 {[%emt 0:00:11]} c5 {[%emt 0:00:03]} 23. a3 {[%emt 0:00:54]} Raf8 {[%emt 0:00:29]} 24. f3 {[%emt 0:00:29]} g5 {[%emt 0:00:08]} 25. Re1 {[%emt 0:00:47]} g4 {[%emt 0:00:26]} 0-1

[Event "DVM U10 2024"]
[Site "Duesseldorf"]
[Date "2024.12.28"]
[Round "6"]
[White "Vlad, Mark"]
[Black "Kukhtichev, Maksim"]
[Result "1-0"]
[ECO "C58"]
[WhiteElo "1439"]
[BlackElo "1639"]
[Annotator "NA RC"]
[PlyCount "89"]
[EventDate "2024.12.23"]
[EventType "team-tourn"]
[EventRounds "7"]
[EventCountry "GER"]
[SourceTitle "playchess.com"]
[Source "ChessBase"]
[SourceQuality "1"]
[TimeControl "3300+5"]

1. e4 {[%emt 0:00:05]} e5 {[%emt 0:00:07]} 2. Nf3 {[%emt 0:00:04]} Nc6 {[%emt 0:00:05]} 3. Bc4 {[%emt 0:00:18]} Nf6 {[%emt 0:00:19]} 4. Ng5 {[%emt 0:00:17]} d5 {[%emt 0:00:06]} 5. exd5 {[%emt 0:00:05]} Na5 {[%emt 0:00:04]} 6. Bb5+ {[%emt 0:00:14]} c6 {[%emt 0:00:05]} 7. dxc6 {[%emt 0:00:07]} bxc6 {[%emt 0:00:04]} 8. Bd3 {[%emt 0:00:36]} Bc5 {[%emt 0:00:28]} 9. O-O {[%emt 0:00:38]} O-O {[%emt 0:00:40]} 10. a3 {[%emt 0:01:24]} Nb7 {[%emt 0:00:17]} 11. Nc3 {[%emt 0:02:47]} Bd4 {[%emt 0:01:10]} 12. Nge4 {[%emt 0:03:25]} Bxc3 {[%emt 0:00:44]} 13. Nxf6+ {[%emt 0:00:16]} Qxf6 {[%emt 0:00:09]} 14. dxc3 {[%emt 0:00:29]} Rd8 {[%emt 0:01:58]} 15. Qe2 {[%emt 0:02:30]} Nd6 {[%emt 0:01:21]} 16. f4 {[%emt 0:02:56]} e4 {[%emt 0:01:29]} 17. Bc4 {[%emt 0:01:43]} Qg6 {[%emt 0:01:16]} 18. Ba2 {[%emt 0:03:01]} Kh8 {[%emt 0:02:27]} 19. Bd2 {[%emt 0:03:12]} Bg4 {[%emt 0:02:49]} 20. Qf2 {[%emt 0:03:09]} Nf5 {[%emt 0:01:08]} 21. Be3 {[%emt 0:02:47]} Nh4 {[%emt 0:01:17]} 22. Qxh4 {[%emt 0:01:11]} Rdb8 {[%emt 0:01:52]} 23. Bb3 {[%emt 0:01:45]} Rb5 {[%emt 0:00:14]} 24. Bxf7 {[%emt 0:03:40]} Qxf7 {[%emt 0:00:52]} 25. Qxg4 {[%emt 0:00:20]} Rxb2 {[%emt 0:00:40]} 26. Rad1 {[%emt 0:02:03]} Rxc2 {[%emt 0:00:59]} 27. Rd7 {[%emt 0:01:27]} Qg6 {[%emt 0:01:13]} 28. Qxg6 {[%emt 0:00:13]} hxg6 {[%emt 0:00:06]} 29. Bd4 {[%emt 0:00:24]} Kh7 {[%emt 0:00:51]} 30. Rxg7+ {[%emt 0:00:16]} Kh6 {[%emt 0:00:06]} 31. Re7 {[%emt 0:01:12]} Rb8 {[%emt 0:00:56]} 32. Rxe4 {[%emt 0:00:31]} Rbb2 {[%emt 0:00:06]} 33. Bf2 {[%emt 0:00:41]} Rxc3 {[%emt 0:01:06]} 34. Re3 {[%emt 0:00:41]} Rcc2 {[%emt 0:00:30]} 35. Rg3 {[%emt 0:00:59]} c5 {[%emt 0:00:27]} 36. Be3 {[%emt 0:01:27]} c4 {[%emt 0:00:25]} 37. f5+ {[%emt 0:00:27]} Kg7 {[%emt 0:00:08]} 38. Bd4+ {[%emt 0:00:18]} Kf7 {[%emt 0:00:21]} 39. fxg6+ {[%emt 0:00:12]} Kg8 {[%emt 0:00:07]} 40. Bxb2 {[%emt 0:00:14]} c3 {[%emt 0:00:24]} 41. Bxc3 {[%emt 0:00:16]} a5 {[%emt 0:00:05]} 42. g7 {[%emt 0:00:12]} a4 {[%emt 0:00:23]} 43. Rf8+ {[%emt 0:00:05]} Kh7 {[%emt 0:00:09]} 44. g8=Q+ {[%emt 0:00:11]} Kh6 {[%emt 0:00:06]} 45. Qg6# {[%emt 0:00:08]} 1-0

[Event "DVM U10 2024"]
[Site "Duesseldorf"]
[Date "2024.12.28"]
[Round "6"]
[White "Essers, Mathilda Marie"]
[Black "Satheesh, Dharshini"]
[Result "0-1"]
[ECO "D02"]
[WhiteElo "1435"]
[BlackElo "1643"]
[Annotator "NA RC"]
[PlyCount "118"]
[EventDate "2024.12.23"]
[EventType "team-tourn"]
[EventRounds "7"]
[EventCountry "GER"]
[SourceTitle "playchess.com"]
[Source "ChessBase"]
[SourceQuality "1"]
[TimeControl "3300+5"]

1. d4 {[%emt 0:00:02]} d5 {[%emt 0:00:04]} 2. Nf3 {[%emt 0:00:07]} Nf6 {[%emt 0:00:14]} 3. c3 {[%emt 0:00:09]} e6 {[%emt 0:05:22]} 4. Bf4 {[%emt 0:00:13]} c5 {[%emt 0:01:05]} 5. e3 {[%emt 0:00:13]} Bd6 {[%emt 0:02:20]} 6. Bg3 {[%emt 0:00:14]} Nc6 {[%emt 0:01:16]} 7. Be2 {[%emt 0:00:28]} O-O {[%emt 0:00:32]} 8. Nbd2 {[%emt 0:00:08]} Re8 {[%emt 0:01:23]} 9. O-O {[%emt 0:00:32]} e5 {[%emt 0:01:52]} 10. dxe5 {[%emt 0:00:28]} Nxe5 {[%emt 0:00:15]} 11. Nxe5 {[%emt 0:00:17]} Bxe5 {[%emt 0:00:08]} 12. Bxe5 {[%emt 0:00:07]} Rxe5 {[%emt 0:00:19]} 13. Nf3 {[%emt 0:00:18]} Re8 {[%emt 0:00:40]} 14. h3 {[%emt 0:00:11]} Bf5 {[%emt 0:03:17]} 15. Qb3 {[%emt 0:01:10]} Qb6 {[%emt 0:01:26]} 16. c4 {[%emt 0:00:47]} Be4 {[%emt 0:04:24]} 17. cxd5 {[%emt 0:00:53]} Bxd5 {[%emt 0:00:15]} 18. Qa3 {[%emt 0:04:16]} Rac8 {[%emt 0:02:25]} 19. b3 {[%emt 0:00:27]} c4 {[%emt 0:01:40]} 20. bxc4 {[%emt 0:01:26]} Bxc4 {[%emt 0:00:07]} 21. Bxc4 {[%emt 0:00:08]} Rxc4 {[%emt 0:00:05]} 22. Qd3 {[%emt 0:01:21]} Rec8 {[%emt 0:01:20]} 23. Ne5 {[%emt 0:01:50]} Rc3 {[%emt 0:00:15]} 24. Qb1 {[%emt 0:01:01]} Qc7 {[%emt 0:02:08]} 25. Nf3 {[%emt 0:00:42]} g6 {[%emt 0:01:40]} 26. Nd4 {[%emt 0:01:08]} a6 {[%emt 0:00:54]} 27. Ne2 {[%emt 0:00:19]} Rc2 {[%emt 0:00:46]} 28. Re1 {[%emt 0:00:48]} Qe7 {[%emt 0:05:07]} 29. Kf1 {[%emt 0:00:36]} Ne4 {[%emt 0:03:45]} 30. Kg1 {[%emt 0:01:34]} Rxe2 {[%emt 0:03:49]} 31. Rxe2 {[%emt 0:00:55]} Nc3 {[%emt 0:00:12]} 32. Qe1 {[%emt 0:00:31]} Nxe2+ {[%emt 0:00:06]} 33. Qxe2 {[%emt 0:00:08]} Qe5 {[%emt 0:00:41]} 34. Rd1 {[%emt 0:00:37]} Qe6 {[%emt 0:00:33]} 35. f4 {[%emt 0:00:36]} Re8 {[%emt 0:00:28]} 36. Re1 {[%emt 0:00:23]} Rd8 {[%emt 0:00:56]} 37. e4 {[%emt 0:01:29]} Qb6+ {[%emt 0:00:25]} 38. Qf2 {[%emt 0:00:18]} Qxf2+ {[%emt 0:00:25]} 39. Kxf2 {[%emt 0:00:51]} Rd2+ {[%emt 0:00:32]} 40. Re2 {[%emt 0:00:07]} Rxe2+ {[%emt 0:00:03]} 41. Kxe2 {[%emt 0:00:08]} Kf8 {[%emt 0:00:05]} 42. f5 {[%emt 0:00:11]} f6 {[%emt 0:01:57]} 43. g4 {[%emt 0:00:08]} Ke7 {[%emt 0:00:09]} 44. Kf3 {[%emt 0:00:25]} b5 {[%emt 0:00:37]} 45. h4 {[%emt 0:00:16]} b4 {[%emt 0:00:05]} 46. g5 {[%emt 0:00:08]} a5 {[%emt 0:00:53]} 47. gxf6+ {[%emt 0:00:28]} Kxf6 {[%emt 0:00:03]} 48. fxg6 {[%emt 0:00:13]} hxg6 {[%emt 0:00:02]} 49. Kf4 {[%emt 0:00:13]} a4 {[%emt 0:00:04]} 50. e5+ {[%emt 0:00:06]} Ke6 {[%emt 0:00:02]} 51. Kg5 {[%emt 0:00:26]} b3 {[%emt 0:00:02]} 52. axb3 {[%emt 0:00:12]} axb3 {[%emt 0:00:02]} 53. Kxg6 {[%emt 0:00:26]} b2 {[%emt 0:00:01]} 54. Kg7 {[%emt 0:00:18]} b1=Q {[%emt 0:00:04]} 55. h5 {[%emt 0:00:08]} Qb8 {[%emt 0:00:10]} 56. h6 {[%emt 0:00:08]} Qxe5+ {[%emt 0:00:15]} 57. Kg8 {[%emt 0:00:13]} Qg5+ {[%emt 0:01:22]} 58. Kh7 {[%emt 0:00:19]} Kf7 {[%emt 0:00:01]} 59. Kh8 {[%emt 0:00:25]} Qg8# {[%emt 0:00:16]} 0-1